fUST/lending_fUST_20250305
["ID","MTS","AMOUNT","RATE_DAILY","PERIOD"]
[355451073,1741179037620,-500.0,0.00038356,9]
[355451074,1741179037630,-500.0,0.00038356,9]
[355451075,1741179037640,-582.43123138,0.00038356,9]
[355451076,1741179037650,-500.0,0.00038356,9]
[355451077,1741179037662,-500.0,0.00038356,9]
[355451078,1741179037672,-1027.97,0.00038356,9]
[355451079,1741179037682,-500.0,0.00038356,9]
[355451080,1741179037692,-500.0,0.00038356,9]
[355451081,1741179037702,-500.0,0.00038356,9]
[355451082,1741179037713,-1209.55,0.00038356,9]
[355451083,1741179037723,-500.0,0.00038356,9]
[355451084,1741179037732,-500.0,0.00038356,9]
[355451085,1741179037743,-500.0,0.00038356,9]
[355451086,1741179037752,-1021.71,0.00038356,9]
[355451087,1741179037762,-1045.4,0.00038356,9]
[355451088,1741179037772,-500.0,0.00038356,9]
[355451089,1741179037783,-1964.08,0.00038356,9]
[355451090,1741179037793,-500.0,0.00038356,9]
[355451091,1741179037804,-500.0,0.00038356,9]
[355451092,1741179037816,-500.0,0.00038356,9]
[355451093,1741179037826,-500.0,0.00038356,9]
[355451094,1741179037836,-500.0,0.00038356,9]
[355451095,1741179037846,-500.0,0.00038356,9]
[355451096,1741179037855,-500.0,0.00038356,9]
[355451097,1741179037865,-743.53,0.00038356,9]
[355451098,1741179037875,-305.20186315,0.00038356,9]
[355451099,1741179037885,-500.0,0.00038356,9]
[355451100,1741179037895,-500.0,0.00038356,9]
[355451101,1741179037905,-500.0,0.00038356,9]
[355451102,1741179037914,-500.0,0.00038356,9]
[355451103,1741179037925,-364.48882777,0.00038356,9]
[355451104,1741179037935,-500.0,0.00038356,9]
[355451105,1741179037945,-500.0,0.00038356,9]
[355451106,1741179037955,-500.0,0.00038356,9]
[355451107,1741179037964,-500.0,0.00038356,9]
[355451108,1741179037974,-500.0,0.00038356,9]
[355451109,1741179037984,-500.0,0.00038356,9]
[355451110,1741179037994,-500.0,0.00038356,9]
[355451111,1741179038003,-590.00259252,0.00038356,9]
[355451112,1741179038013,-1132.07,0.00038356,9]
[355451113,1741179038023,-500.0,0.00038356,9]
[355451114,1741179038033,-519.76500049,0.00038356,9]
[355451115,1741179038043,-500.0,0.00038356,9]
[355451117,1741179038053,-502.55,0.00038356,9]
[355451119,1741179038062,-416.66666667,0.00038356,7]
[355451120,1741179038073,-500.0,0.00038356,9]
[355451121,1741179038083,-500.0,0.00038356,9]
[355451122,1741179038093,-542.89,0.00038356,9]
[355451124,1741179038103,-500.0,0.00038356,9]
[355451126,1741179038114,-500.0,0.00038356,9]
[355451128,1741179038124,-500.0,0.00038356,9]
[355451129,1741179038134,-500.0,0.00038356,9]
[355451130,1741179038145,-1798.11,0.00038356,9]
[355451131,1741179038155,-500.0,0.00038356,9]
[355451132,1741179038168,-500.0,0.00038356,9]
[355451133,1741179038182,-500.0,0.00038356,9]
[355451134,1741179038192,-1049.54,0.00038356,9]
[355451135,1741179038201,-500.0,0.00038356,9]
[355451136,1741179038211,-7761.27,0.00038356,9]
[355451137,1741179038222,-623.15,0.00038356,9]
[355451138,1741179038231,-500.0,0.00038356,9]
[355451139,1741179038241,-500.0,0.00038356,9]
[355451140,1741179038256,-500.0,0.00038356,9]
[355451141,1741179038267,-500.0,0.00038356,9]
[355451143,1741179038277,-9839.85,0.00038356,9]
[355451144,1741179038286,-500.0,0.00038356,9]
[355451145,1741179038297,-607.81,0.00038356,9]
[355451146,1741179038308,-500.0,0.00038356,9]
[355451147,1741179038320,-556.63,0.00038356,9]
[355451148,1741179038329,-2159.89,0.00038356,9]
[355451149,1741179038339,-500.0,0.00038356,9]
[355451150,1741179038349,-500.0,0.00038356,9]
[355451151,1741179038359,-500.0,0.00038356,9]
[355451152,1741179038370,-500.0,0.00038356,9]
[355451153,1741179038380,-500.0,0.00038356,9]
[355451154,1741179038391,-1299.18,0.00038356,9]
[355451155,1741179038400,-500.0,0.00038356,9]
[355451156,1741179038411,-500.0,0.00038356,9]
[355451157,1741179038421,-1188.05,0.00038356,9]
[355451158,1741179038431,-500.0,0.00038356,9]
[355451159,1741179038441,-500.0,0.00038356,9]
[355451160,1741179038451,-500.0,0.00038356,9]
[355451161,1741179038462,-500.0,0.00038356,9]
[355451162,1741179038473,-1507.63,0.00038356,9]
[355451163,1741179038484,-481.69,0.00038356,9]
[355451164,1741179038494,-704.04,0.00038356,9]
[355451165,1741179038504,-500.0,0.00038356,9]
[355451166,1741179038514,-500.0,0.00038356,9]
[355451167,1741179038524,-93966.77,0.00038356,7]
[355451168,1741179038534,-779.74,0.00038356,9]
[355451169,1741179038544,-500.0,0.00038356,9]
[355451170,1741179038554,-762.46,0.00038356,9]
[355451172,1741179038565,-782.03,0.00038356,9]
[355451174,1741179038576,-500.0,0.00038356,9]
[355451176,1741179038586,-500.0,0.00038356,9]
[355451178,1741179038597,-500.0,0.00038356,9]
[355451180,1741179038607,-500.0,0.00038356,9]
[355451181,1741179038618,-500.0,0.00038356,9]
[355451182,1741179038628,-1585.4,0.00038356,9]
[355451183,1741179038638,-4484.41,0.00038356,9]
[355451184,1741179038648,-500.0,0.00038356,9]
[355451185,1741179038658,-670.4,0.00038356,9]
[355451186,1741179038668,-500.0,0.00038356,9]
[355451187,1741179038677,-500.0,0.00038356,9]
[355451188,1741179038687,-500.0,0.00038356,9]
[355451189,1741179038697,-500.0,0.00038356,9]
[355451190,1741179038707,-500.0,0.00038356,9]
[355451191,1741179038717,-500.0,0.00038356,9]
[355451192,1741179038727,-500.0,0.00038356,9]
[355451193,1741179038737,-944.04,0.00038356,9]
[355451194,1741179038747,-500.0,0.00038356,9]
[355451195,1741179038757,-500.0,0.00038356,9]
[355451196,1741179038768,-1003.93,0.00038356,9]
[355451197,1741179038778,-500.0,0.00038356,9]
[355451198,1741179038789,-515.61875077,0.00038356,9]
[355451199,1741179038799,-500.0,0.00038356,9]
[355451200,1741179038809,-500.0,0.00038356,9]
[355451201,1741179038820,-4868.14,0.00038356,9]
[355451202,1741179038831,-500.0,0.00038356,9]
[355451203,1741179038841,-807.36,0.00038356,9]
[355451204,1741179038851,-500.0,0.00038356,9]
[355451205,1741179038861,-500.0,0.00038356,9]
[355451206,1741179038871,-500.0,0.00038356,9]
[355451207,1741179038881,-1671.01,0.00038356,5]
[355451208,1741179038891,-500.0,0.00038356,9]
[355451209,1741179038901,-500.0,0.00038356,9]
[355451210,1741179038911,-500.0,0.00038356,9]
[355451211,1741179038922,-500.0,0.00038356,9]
[355451212,1741179038932,-500.0,0.00038356,9]
[355451213,1741179038944,-3849.53,0.00038356,9]
[355451214,1741179038954,-500.0,0.00038356,9]
[355451215,1741179038964,-500.0,0.00038356,9]
[355451216,1741179038975,-500.0,0.00038356,9]
[355451217,1741179038984,-500.0,0.00038356,9]
[355451218,1741179038994,-500.0,0.00038356,9]
[355451219,1741179039005,-4871.74,0.00038356,9]
[355451220,1741179039015,-500.0,0.00038356,9]
[355451221,1741179039025,-500.0,0.00038356,9]
[355451222,1741179039035,-500.0,0.00038356,9]
[355451223,1741179039045,-573.94,0.00038356,9]
[355451224,1741179039055,-500.0,0.00038356,9]
[355451225,1741179039065,-500.0,0.00038356,9]
[355451226,1741179039075,-500.0,0.00038356,9]
[355451227,1741179039084,-500.0,0.00038356,9]
[355451228,1741179039094,-3318.38,0.00038356,9]
[355451229,1741179039105,-500.0,0.00038356,9]
[355451230,1741179039115,-556.5,0.00038356,9]
[355451231,1741179039125,-500.0,0.00038356,9]
[355451232,1741179039135,-1884.42,0.00038356,9]
[355451233,1741179039145,-500.0,0.00038356,9]
[355451234,1741179039155,-500.0,0.00038356,9]
[355451235,1741179039165,-500.0,0.00038356,9]
[355451236,1741179039176,-610.71,0.00038356,9]
[355451237,1741179039189,-500.0,0.00038356,9]
[355451238,1741179039199,-500.0,0.00038356,9]
[355451239,1741179039209,-1311.72,0.00038356,9]
[355451240,1741179039219,-723.27,0.00038356,9]
[355451241,1741179039229,-500.0,0.00038356,9]
[355451242,1741179039239,-500.0,0.00038356,9]
[355451243,1741179039249,-500.0,0.00038356,9]
[355451244,1741179039261,-500.0,0.00038356,9]
[355451245,1741179039272,-10125.27,0.00038356,5]
[355451246,1741179039281,-1337.42,0.00038356,9]
[355451247,1741179039292,-703.01,0.00038356,9]
[355451248,1741179039302,-500.0,0.00038356,9]
[355451249,1741179039312,-993.19,0.00038356,9]
[355451250,1741179039323,-500.0,0.00038356,9]
[355451251,1741179039333,-500.0,0.00038356,9]
[355451252,1741179039343,-500.0,0.00038356,9]
[355451253,1741179039353,-500.0,0.00038356,9]
[355451254,1741179039363,-6747.82,0.00038356,9]
[355451255,1741179039373,-1160.75,0.00038356,9]
[355451256,1741179039383,-500.0,0.00038356,9]
[355451257,1741179039393,-500.0,0.00038356,9]
[355451258,1741179039403,-500.0,0.00038356,9]
[355451259,1741179039413,-500.0,0.00038356,9]
[355451260,1741179039423,-1455.45,0.00038356,9]
[355451261,1741179039433,-1315.8,0.00038356,9]
[355451262,1741179039443,-500.0,0.00038356,9]
[355451263,1741179039454,-500.0,0.00038356,9]
[355451264,1741179039468,-1704.77,0.00038356,9]
[355451265,1741179039486,-500.0,0.00038356,9]
[355451266,1741179039504,-500.0,0.00038356,9]
[355451267,1741179039527,-808.46,0.00038356,9]
[355451268,1741179039544,-500.0,0.00038356,9]
[355451269,1741179039558,-3498.63,0.00038356,9]
[355451270,1741179039579,-1044.72,0.00038356,9]
[355451271,1741179039591,-500.0,0.00038356,9]
[355451272,1741179039602,-500.0,0.00038356,9]
[355451273,1741179039613,-502.02,0.00038356,9]
[355451274,1741179039623,-5790.55,0.00038356,9]
[355451275,1741179039634,-500.0,0.00038356,9]
[355451276,1741179039645,-5142.16,0.00038356,9]
[355451277,1741179039657,-500.0,0.00038356,9]
[355451278,1741179039887,-500.0,0.00038356,9]
[355451279,1741179039897,-500.0,0.00038356,9]
[355451280,1741179039907,-521.1,0.00038356,9]
[355451281,1741179039916,-500.0,0.00038356,9]
[355451282,1741179039926,-593.37,0.00038356,9]
[355451283,1741179039936,-516.16,0.00038356,9]
[355451284,1741179039945,-500.0,0.00038356,9]
[355451286,1741179039955,-500.0,0.00038356,9]
[355451287,1741179039965,-179.27316249,0.00038356,9]
[355451288,1741179039974,-500.0,0.00038356,9]
[355451289,1741179039984,-500.0,0.00038356,9]
[355451290,1741179039994,-500.0,0.00038356,9]
[355451291,1741179040004,-1649.73,0.00038356,9]
[355451292,1741179040014,-500.0,0.00038356,9]
[355451294,1741179040024,-5517.04,0.00038356,9]
[355451296,1741179040034,-500.0,0.00038356,9]
[355451298,1741179040043,-500.0,0.00038356,9]
[355451300,1741179040054,-500.0,0.00038356,9]
[355451302,1741179040063,-3784.62,0.00038356,9]
[355451303,1741179040073,-500.0,0.00038356,9]
[355451304,1741179040083,-500.0,0.00038356,9]
[355451305,1741179040092,-500.0,0.00038356,9]
[355451306,1741179040102,-500.0,0.00038356,9]
[355451307,1741179040112,-500.0,0.00038356,9]
[355451308,1741179040122,-509.45649383,0.00038373,5]
[355451309,1741179040131,-500.0,0.00038373,5]
[355451311,1741179040141,-500.0,0.00038373,5]
[355451313,1741179040151,-499.0447985,0.00038373,5]
[355451314,1741179040162,-500.35907417,0.00038373,5]
[355451315,1741179040177,-500.0,0.00038373,5]
[355451316,1741179040188,-500.0,0.00038373,5]
[355451317,1741179040198,-500.0,0.00038373,5]
[355451318,1741179040208,-500.0,0.00038373,5]
[355451319,1741179040218,-219.55720741,0.00038473,2]
[355451320,1741179040227,-40191.59969134,0.0003853,2]
[355451351,1741179040605,-500.0,0.00038356,9]
[355451353,1741179040615,-2646.20611595,0.0003853,2]
[355451440,1741179041436,-313.41355986,0.00038355,2]
[355451442,1741179041445,-90081.58644014,0.0003853,2]
[355451653,1741179043596,-500.0,0.00038356,9]
[355451655,1741179043607,-22783.69336896,0.0003853,2]
[355451669,1741179043738,-1069.32335931,0.0003853,2]
[355451683,1741179043858,-344.46489065,0.0003853,2]
[355451685,1741179043871,-733.71895981,0.0003853,2]
[355451688,1741179043893,-1045.44029407,0.0003853,2]
[355451854,1741179046609,-500.0,0.00038356,9]
[355451855,1741179046619,-2069.89,0.00038356,9]
[355451856,1741179046629,-500.0,0.00038356,9]
[355451857,1741179046639,-30721.52882373,0.0003853,2]
[355451858,1741179046651,-2762.29311666,0.0003853,2]
[355451859,1741179046663,-437.675324,0.0003853,2]
[355451860,1741179046770,-29182.46961538,0.0003853,2]
[355451861,1741179046780,-500.0,0.00038573,5]
[355451862,1741179046790,-503.82570964,0.00038573,5]
[355451863,1741179046799,-500.0,0.00038573,5]
[355451864,1741179046809,-822.30313553,0.0003863,5]
[355451865,1741179046819,-519.77186462,0.0003863,5]
[355451866,1741179046832,-5026.339,0.0003863,120]
[355451867,1741179046842,-500.0,0.0003863,9]
[355451869,1741179046852,-527.73652858,0.0003863,9]
[355451871,1741179046862,-500.0,0.0003863,9]
[355451873,1741179046871,-887.95,0.0003863,9]
[355451875,1741179046881,-500.0,0.0003863,9]
[355451877,1741179046891,-500.0,0.0003863,9]
[355451879,1741179046900,-500.0,0.0003863,9]
[355451881,1741179046910,-500.0,0.0003863,9]
[355451883,1741179046920,-500.0,0.0003863,9]
[355451885,1741179046930,-500.0,0.0003863,9]
[355451887,1741179046940,-500.0,0.0003863,9]
[355451888,1741179046950,-510.25,0.0003863,9]
[355451890,1741179046960,-500.0,0.0003863,9]
[355451892,1741179046969,-500.0,0.0003863,9]
[355451894,1741179046979,-527.24,0.0003863,9]
[355451896,1741179046988,-500.0,0.0003863,9]
[355451898,1741179046998,-500.0,0.0003863,9]
[355451899,1741179047008,-500.0,0.0003863,9]
[355451900,1741179047018,-500.0,0.0003863,9]
[355451901,1741179047028,-500.0,0.0003863,9]
[355451902,1741179047038,-505.71931318,0.0003863,9]
[355451903,1741179047047,-500.0,0.0003863,9]
[355451904,1741179047056,-500.0,0.0003863,9]
[355451905,1741179047066,-500.0,0.0003863,9]
[355451906,1741179047077,-524.53507004,0.0003863,9]
[355451907,1741179047087,-500.0,0.0003863,9]
[355451908,1741179047097,-500.0,0.0003863,9]
[355451909,1741179047107,-500.0,0.0003863,9]
[355451910,1741179047116,-500.0,0.0003863,9]
[355451911,1741179047126,-500.0,0.0003863,9]
[355451912,1741179047135,-500.0,0.0003863,9]
[355451913,1741179047144,-500.0,0.0003863,9]
[355451914,1741179047154,-500.0,0.0003863,9]
[355451915,1741179047163,-500.0,0.0003863,9]
[355451916,1741179047175,-500.0,0.0003863,9]
[355451917,1741179047185,-375.00008104,0.0003863,9]
[355451918,1741179047195,-500.0,0.0003863,9]
[355451919,1741179047241,-1188.96,0.0003863,9]
[355451920,1741179047253,-513.44720958,0.0003863,9]
[355451921,1741179047263,-500.0,0.0003863,9]
[355451922,1741179047272,-500.0,0.0003863,9]
[355451923,1741179047281,-500.0,0.0003863,9]
[355451924,1741179047291,-500.0,0.0003863,9]
[355451925,1741179047301,-502.68,0.0003863,9]
[355451926,1741179047311,-500.0,0.0003863,9]
[355451927,1741179047320,-500.0,0.0003863,9]
[355451928,1741179047331,-500.0,0.0003863,9]
[355451929,1741179047342,-732.9,0.0003863,9]
[355451930,1741179047351,-902.88,0.0003863,9]
[355451931,1741179047361,-223.1305234,0.0003863,9]
[355451932,1741179047391,-276.8694766,0.0003863,9]
[355451933,1741179047401,-500.0,0.0003863,9]
[355451934,1741179047411,-500.0,0.0003863,9]
[355451935,1741179047420,-430.64907895,0.0003863,9]
[355451936,1741179047430,-510.70375087,0.0003863,9]
[355451937,1741179047439,-500.0,0.0003863,9]
[355451938,1741179047450,-500.0,0.0003863,9]
[355451939,1741179047459,-500.0,0.0003863,9]
[355451940,1741179047470,-500.0,0.0003863,9]
[355451941,1741179047480,-714.78,0.0003863,9]
[355451942,1741179047490,-500.0,0.0003863,9]
[355451943,1741179047499,-500.0,0.0003863,9]
[355451944,1741179047510,-500.0,0.0003863,9]
[355451945,1741179047519,-500.0,0.0003863,9]
[355451946,1741179047529,-500.0,0.0003863,9]
[355451947,1741179047538,-500.0,0.0003863,9]
[355451948,1741179047548,-500.0,0.0003863,9]
[355451949,1741179047558,-500.0,0.0003863,9]
[355451950,1741179047568,-817.77177991,0.0003863,9]
[355452012,1741179110007,-458.5214341,0.00049366,7]
[355452028,1741179768407,-2935.51198367,0.00016232,2]
[355452032,1741179964455,7959.30065252,0.000162,10]
[355452034,1741179997625,151.3,0.0001625,2]
[355452035,1741180000139,-689.96304698,0.000279,2]
[355452067,1741180231958,-300.0,0.00027899,2]
[355452069,1741180231968,-2625.63379537,0.000279,2]
[355452071,1741180231977,-2000.0,0.000279,15]
[355452073,1741180231986,-2000.0,0.000279,15]
[355452076,1741180232006,-2000.0,0.000279,15]
[355452078,1741180232017,-2000.0,0.000279,15]
[355452080,1741180232027,-416.66666667,0.00028,3]
[355452082,1741180232036,-416.66666667,0.00028,3]
[355452084,1741180232048,-2000.0,0.00028,15]
[355452086,1741180232058,-2000.0,0.00028,15]
[355452088,1741180232068,-2000.0,0.00029,15]
[355452090,1741180232077,-2000.0,0.0003,15]
[355452092,1741180232087,-420.0,0.00030134,2]
[355452094,1741180232096,-587.0,0.00032548,2]
[355452096,1741180232106,-549.53366546,0.000329,6]
[355452098,1741180232116,-184.174304,0.00034439,2]
[355452101,1741180232126,-731.0527402,0.00034466,2]
[355452103,1741180232136,-203.2352261,0.00034604,2]
[355452105,1741180232146,-6819.86414727,0.00035018,2]
[355452113,1741180232214,-2493.42056767,0.00035018,2]
[355452176,1741180243108,-2000.0,0.00028,15]
[355452177,1741180243118,-324.82392441,0.00032918,2]
[355452178,1741180243128,-11968.38068078,0.00035018,2]
[355452191,1741180243639,-3618.33460428,0.00035018,2]
[355452192,1741180243649,-278.07008329,0.0003589,2]
[355452193,1741180243660,-221.92991671,0.0003589,2]
[355452194,1741180243671,-399.53395462,0.000362,98]
[355452195,1741180243681,-399.53395462,0.000362,98]
[355452196,1741180243690,-399.53395462,0.000362,98]
[355452197,1741180243700,-160.19067411,0.0003633,2]
[355452198,1741180243710,-399.53395462,0.00036875,102]
[355452199,1741180243720,-416.66666667,0.0003721,2]
[355452200,1741180243730,-393.7796014,0.00037759,4]
[355452201,1741180243739,-160.19067411,0.00037885,2]
[355452202,1741180243750,-324.82392441,0.00037918,2]
[355452203,1741180243760,-4356.01488827,0.00038,6]
[355452204,1741180243769,-878.63,0.00038246,3]
[355452205,1741180243779,-1872.63783367,0.00038256,2]
[355452207,1741180243820,-76.66256077,0.00038256,2]
[355452208,1741180243840,-494.18,0.00038256,2]
[355452277,1741180245833,-350.0,0.00038256,2]
[355452278,1741180245849,-8990.00000001,0.00038256,2]
[355452302,1741181371100,-626.05127875,0.0001711,2]
[355452303,1741181371122,-387.10989545,0.0002061,2]
[355452304,1741181371144,-752.70566898,0.00021,4]
[355452305,1741181371164,-1913.70960154,0.00022,2]
[355452306,1741181371185,-422.95,0.00026,2]
[355452307,1741181371206,-2000.0,0.00028,15]
[355452308,1741181371226,-1000.0,0.00028,3]
[355452309,1741181371246,-416.66666667,0.00028,3]
[355452310,1741181371268,-1893.26149167,0.000282,15]
[355452349,1741181432219,-416.66666667,0.00028,3]
[355452352,1741181432230,-106.73850833,0.000282,15]
[355452354,1741181432240,-300.0,0.00028299,2]
[355452356,1741181432249,-2000.0,0.000283,15]
[355452358,1741181432259,-94.15851426,0.000283,15]
[355452878,1741181441496,-1905.84148574,0.000283,15]
[355452880,1741181441506,-2000.0,0.000285,15]
[355452882,1741181441519,-2000.0,0.000287,15]
[355452884,1741181441528,-2000.0,0.00029,15]
[355452886,1741181441538,-2000.0,0.00029,15]
[355452888,1741181441547,-2000.0,0.00029,15]
[355452890,1741181441557,-2000.0,0.000295,15]
[355452892,1741181441566,-531.21587665,0.000299,5]
[355452894,1741181441576,-1000.0,0.0003,4]
[355452896,1741181441585,-1043.9072682,0.00030283,2]
[355452898,1741181441594,-313.0,0.00030554,2]
[355452900,1741181441604,-171.837569,0.00033803,4]
[355452902,1741181441613,-1000.0,0.00034,2]
[355452904,1741181441623,-2000.0,0.00035,15]
[355452906,1741181441632,-165.0,0.0003589,2]
[355452908,1741181441641,-500.0,0.0003589,2]
[355452910,1741181441650,-500.0,0.0003598,30]
[355452912,1741181441659,-165.0,0.00036,2]
[355452914,1741181441669,-20000.0,0.00036,2]
[355452916,1741181441678,-150.0,0.00036156,2]
[355452918,1741181441688,-416.66666667,0.00036923,2]
[355452920,1741181441698,-165.0,0.00037397,2]
[355452922,1741181441707,-156.593922,0.00037559,4]
[355452924,1741181441717,-295.3347011,0.00037759,4]
[355452926,1741181441726,-411.15156777,0.00038,5]
[355452929,1741181441737,-18060.48001711,0.00038,7]
[355453071,1741181443053,-150.0,0.000266,2]
[355453073,1741181443063,-1221.9072682,0.00038,7]
[355454303,1741182407335,-172.88181924,0.0001925,2]
[355454347,1741182632260,-122.33362242,0.0001925,2]
[355454349,1741182632270,-416.66666667,0.00028,3]
[355454351,1741182632280,-416.66666667,0.00028,3]
[355454353,1741182632290,-389.51937504,0.00033,2]
[355454592,1741182638095,-255.36810595,0.00033,2]
[355454594,1741182638105,-294.77289609,0.000349,2]
[355454596,1741182638116,-289.14,0.000349,2]
[355454598,1741182638128,-644.887481,0.000349,2]
[355454601,1741182638146,-468.77322655,0.000349,2]
[355454603,1741182638156,-216.19837607,0.00035,7]
[355454605,1741182638165,-1017.1863308,0.00035331,2]
[355454607,1741182638174,-165.0,0.0003589,2]
[355454609,1741182638184,-500.0,0.0003589,2]
[355454611,1741182638194,-165.0,0.00036,2]
[355454613,1741182638203,-199.76697731,0.000362,98]
[355454615,1741182638213,-416.66666667,0.00036815,2]
[355454617,1741182638222,-732.863997,0.00037078,2]
[355454619,1741182638234,-154.6820456,0.0003726,30]
[355454621,1741182638243,-153.0,0.0003726,30]
[355454623,1741182638253,-153.0,0.0003726,30]
[355454625,1741182638263,-165.0,0.00037397,2]
[355454627,1741182638272,-2000.0,0.000375,15]
[355454630,1741182638282,-1900.0,0.000377,15]
[355454632,1741182638291,-221.5010258,0.00037759,4]
[355454634,1741182638300,-513.50868081,0.000379,8]
[355454635,1741182638309,-8757.05267339,0.000379,5]
[355454974,1741182643236,-19.20909103,0.000379,5]
[355455270,1741182646210,-385.0,0.00037899,2]
[355455271,1741182646221,-8544.99999999,0.000379,5]
[355455980,1741183065465,-105820.83049392,0.00049348,120]
[355455981,1741183065509,-200000.0,0.00049348,120]
[355455982,1741183065554,-200000.0,0.00049348,120]
[355455983,1741183065600,-200000.0,0.00049348,120]
[355455984,1741183065642,-126264.01505364,0.00049348,60]
[355455985,1741183065682,-1521.09554958,0.00049348,90]
[355455986,1741183065729,-3071.31,0.00049348,120]
[355455987,1741183065776,-1968.295599,0.00049348,120]
[355455989,1741183078245,-1000.0,0.00035,120]
[355455990,1741183078285,-1000.0,0.00037,30]
[355455991,1741183078325,-199.76697731,0.0003789,108]
[355455992,1741183078364,-152.48,0.00038,120]
[355455993,1741183078444,-13595.61,0.000387,30]
[355455994,1741183078481,-416.66666667,0.000387,30]
[355455995,1741183078523,-1577.39638445,0.000388,60]
[355455996,1741183078614,-500.0,0.00039999,31]
[355455997,1741183078658,-348.20284031,0.00039999,31]
[355455998,1741183078695,-591401.27690802,0.0004,30]
[355455999,1741183078732,-176.41,0.0004,30]
[355456000,1741183078769,-50000.0,0.0004,30]
[355456001,1741183078807,-200.0,0.0004,120]
[355456002,1741183078848,-539432.19022324,0.0004,30]
[355456003,1741183083115,-1200000.0,0.0004,30]
[355456004,1741183087083,-154451.38448887,0.0004,30]
[355456005,1741183087122,-752001.24126122,0.0004,30]
[355456006,1741183087160,-259.87,0.0004,30]
[355456007,1741183087202,-161.23,0.0004,30]
[355456008,1741183087242,-332.51,0.0004,30]
[355456009,1741183087282,-20000.0,0.0004,30]
[355456010,1741183087320,-20000.0,0.0004,30]
[355456011,1741183087360,-1362.0,0.0004,30]
[355456012,1741183087398,-251431.76424991,0.0004,30]
[355456013,1741183092274,-73712.91701042,0.0004,30]
[355456014,1741183092314,-406647.47277461,0.0004,30]
[355456015,1741183092369,-22560.0,0.0004,30]
[355456016,1741183092412,-1000.0,0.0004,30]
[355456017,1741183092455,-2337139.70634154,0.0004,30]
[355456018,1741183092496,-96449.89442219,0.0004,30]
[355456019,1741183092555,-416.66666667,0.0004,30]
[355456020,1741183092612,-787.5,0.00040346,60]
[355456021,1741183092650,-13595.61,0.000405,30]
[355456022,1741183092712,-2100.0,0.00040959,120]
[355456023,1741183092752,-2100.0,0.00040986,120]
[355456024,1741183092792,-2100.0,0.00041014,120]
[355456025,1741183092832,-2100.0,0.00041041,120]
[355456026,1741183092870,-2100.0,0.00041068,120]
[355456027,1741183092917,-999.0,0.00041095,120]
[355456028,1741183092960,-10000.0,0.00041096,60]
[355456029,1741183092999,-2167.0,0.00041096,60]
[355456030,1741183093036,-1000.0,0.00041096,30]
[355456031,1741183093073,-1000.0,0.00041096,120]
[355456032,1741183093111,-2100.0,0.00041096,120]
[355456033,1741183093149,-416.66666667,0.000411,120]
[355456034,1741183093197,-230.91531,0.000414,120]
[355456035,1741183093233,-738.2501855,0.00041507,30]
[355456036,1741183093277,-999.0,0.00041643,120]
[355456037,1741183093331,-12598.0,0.00042,120]
[355456038,1741183093370,-234.547897,0.00042,120]
[355456039,1741183093407,-6296.0,0.00042,120]
[355456040,1741183093446,-332.51,0.00042,30]